fUSD/lending_fUSD_20260630
["ID","MTS","AMOUNT","RATE_DAILY","PERIOD"]
[426733724,1782766240000,-922.32,0.00016429,2]
[426733651,1782766240000,-152.0,0.00013698,2]
[426733732,1782766240000,-500.0,0.00016438,2]
[426733728,1782766240000,-500.0,0.00016438,2]
[426733734,1782766240000,-500.0,0.00016438,2]
[426733726,1782766240000,-500.0,0.00016438,2]
[426733687,1782766240000,-922.32,0.00015283,2]
[426733688,1782766240000,-155.22,0.00015339,2]
[426733730,1782766240000,-500.0,0.00016438,2]
[426733682,1782766240000,-173.39,0.00015218,2]
[426733650,1782766240000,-152.0,0.00013698,2]
[426733684,1782766240000,-200.0,0.00015231,2]
[426733657,1782766240000,-500.0,0.00013698,2]
[426733659,1782766240000,-2924.00036329,0.00013778,2]
[426733660,1782766240000,-500.0,0.00013972,2]
[426733662,1782766240000,-4080.0963206,0.00014357,2]
[426733663,1782766240000,-152.0,0.00015068,2]
[426733665,1782766240000,-150.0,0.00015068,2]
[426733661,1782766240000,-21756.9006949,0.00014228,2]
[426733667,1782766240000,-301.79427923,0.0001508,2]
[426733666,1782766240000,-914.0,0.00015068,2]
[426733664,1782766240000,-886.0,0.00015068,2]
[426733668,1782766240000,-200.0,0.0001508,2]
[426733658,1782766240000,-346.6,0.00013734,2]
[426733670,1782766240000,-899.0,0.00015091,2]
[426733681,1782766240000,-529.62,0.00015218,2]
[426733669,1782766240000,-200.0,0.0001508,2]
[426733683,1782766240000,-200.0,0.00015231,2]
[426733676,1782766240000,-208.73204317,0.00015134,2]
[426733671,1782766240000,-151.0,0.00015092,2]
[426733679,1782766240000,-150.0,0.00015218,2]
[426733678,1782766240000,-174.52,0.00015218,2]
[426733674,1782766240000,-901.0,0.00015111,2]
[426733677,1782766240000,-900.0,0.00015155,2]
[426733673,1782766240000,-905.0,0.00015097,2]
[426733680,1782766240000,-2040.0,0.00015218,2]
[426733675,1782766240000,-909.0,0.00015111,2]
[426733802,1782766241000,-220.6,0.00017645,2]
[426733804,1782766241000,-156.84109196,0.0001771,2]
[426733800,1782766241000,-455.5,0.00017645,2]
[426733806,1782766241000,-765.25,0.00017815,2]
[426733808,1782766241000,-166.66,0.00017923,2]
[426733810,1782766241000,-500.0,0.00017945,2]
[426733826,1782766241000,-157.17,0.00018016,2]
[426733798,1782766241000,-193.02,0.00017645,2]
[426733829,1782766241000,-5963.2592398,0.00018114,2]
[426733831,1782766241000,-166.66,0.00018261,2]
[426733844,1782766241000,-204.2,0.00018292,2]
[426733835,1782766241000,-204.2,0.00018292,2]
[426733846,1782766241000,-204.2,0.00018292,2]
[426733848,1782766241000,-204.2,0.00018292,2]
[426733850,1782766241000,-204.2,0.00018292,2]
[426733852,1782766241000,-166.66,0.00018292,2]
[426733854,1782766241000,-175.0,0.000183,2]
[426733839,1782766241000,-204.2,0.00018292,2]
[426733837,1782766241000,-204.2,0.00018292,2]
[426733841,1782766241000,-204.2,0.00018292,2]
[426733796,1782766241000,-503.0,0.00017589,2]
[426733858,1782766241000,-8955.35,0.00018356,2]
[426733833,1782766241000,-204.2,0.00018292,2]
[426733785,1782766241000,-560.78068301,0.00017031,10]
[426733749,1782766241000,-500.0,0.00016438,2]
[426733789,1782766241000,-560.78068301,0.00017442,10]
[426733857,1782766241000,-164.0,0.000183,2]
[426733736,1782766241000,-500.0,0.00016438,2]
[426733743,1782766241000,-429.2811483,0.00016438,2]
[426733738,1782766241000,-500.0,0.00016438,2]
[426733741,1782766241000,-500.0,0.00016438,2]
[426733745,1782766241000,-500.0,0.00016438,2]
[426733747,1782766241000,-500.0,0.00016438,2]
[426733753,1782766241000,-500.0,0.00016438,2]
[426733772,1782766241000,-154.04038481,0.00016454,2]
[426733761,1782766241000,-500.0,0.00016438,2]
[426733751,1782766241000,-500.0,0.00016438,2]
[426733755,1782766241000,-500.0,0.00016438,2]
[426733759,1782766241000,-500.0,0.00016438,2]
[426733763,1782766241000,-500.0,0.00016438,2]
[426733765,1782766241000,-500.0,0.00016438,2]
[426733770,1782766241000,-500.0,0.00016438,2]
[426733781,1782766241000,-200.0,0.00017009,2]
[426733794,1782766241000,-684.34,0.00017572,2]
[426733776,1782766241000,-922.32,0.00016811,2]
[426733783,1782766241000,-5963.2592398,0.00017031,2]
[426733787,1782766241000,-166.19,0.00017159,2]
[426733792,1782766241000,-166.66,0.00017553,2]
[426733779,1782766241000,-406.51501268,0.00016954,2]
[426733774,1782766241000,-178.46,0.00016533,2]
[426733862,1782766241000,-280.3903415,0.00018401,10]
[426733767,1782766241000,-500.0,0.00016438,2]
[426733866,1782766241000,-976.39825224,0.00018562,2]
[426733928,1782766241000,-192.08612594,0.00019,2]
[426733922,1782766241000,-4100.0,0.000189,6]
[426733924,1782766241000,-500.0,0.00018986,2]
[426733930,1782766241000,-10419.22859912,0.00019,2]
[426733932,1782766241000,-795.91401045,0.00019,2]
[426733934,1782766241000,-166.66,0.00019031,2]
[426733938,1782766241000,-500.0,0.0001904,2]
[426733940,1782766241000,-500.0,0.0001904,2]
[426733953,1782766241000,-795.91401045,0.000191,2]
[426733944,1782766241000,-33347.6671,0.00019041,2]
[426733942,1782766241000,-500.0,0.0001904,2]
[426733926,1782766241000,-1171.96876367,0.00019,2]
[426733945,1782766241000,-2000.0,0.00019041,2]
[426733946,1782766241000,-166.19,0.00019065,2]
[426733949,1782766241000,-192.08612594,0.000191,2]
[426733951,1782766241000,-10419.22859912,0.000191,2]
[426733947,1782766241000,-1171.96876367,0.000191,2]
[426733956,1782766241000,-500.0,0.00019122,2]
[426733960,1782766241000,-500.0,0.0001914,2]
[426733962,1782766241000,-500.0,0.0001914,2]
[426733966,1782766241000,-500.0,0.0001914,2]
[426733964,1782766241000,-500.0,0.0001914,2]
[426733958,1782766241000,-164.0,0.00019122,2]
[426733861,1782766241000,-221.36079593,0.00018356,10]
[426733936,1782766241000,-500.0,0.0001904,2]
[426733914,1782766241000,-192.08612594,0.000188,2]
[426733757,1782766241000,-500.0,0.00016438,2]
[426733920,1782766241000,-2700.0,0.000188,6]
[426733868,1782766241000,-1233.44608158,0.00018562,2]
[426733870,1782766241000,-171.96849734,0.00018562,2]
[426733864,1782766241000,-9855.62939617,0.00018562,2]
[426733872,1782766241000,-500.0,0.00018586,2]
[426733879,1782766241000,-580.04,0.00018586,2]
[426733875,1782766241000,-500.0,0.00018586,2]
[426733883,1782766241000,-1058.96,0.00018586,2]
[426733881,1782766241000,-1058.96,0.00018586,2]
[426733887,1782766241000,-1058.96,0.00018586,2]
[426733889,1782766241000,-1058.96,0.00018586,2]
[426733893,1782766241000,-166.66,0.00018662,2]
[426733891,1782766241000,-1058.96,0.00018586,2]
[426733877,1782766241000,-500.0,0.00018586,2]
[426733900,1782766241000,-31306.4456069,0.00018687,2]
[426733897,1782766241000,-970.8948601,0.00018687,2]
[426733912,1782766241000,-1171.96876367,0.000188,2]
[426733908,1782766241000,-1300.0,0.000187,6]
[426733918,1782766241000,-795.91401045,0.000188,2]
[426733885,1782766241000,-1058.96,0.00018586,2]
[426733910,1782766241000,-2143.88,0.0001872,2]
[426733895,1782766241000,-1058.96,0.00018686,2]
[426733916,1782766241000,-10419.22859912,0.000188,2]
[426733902,1782766241000,-20954.4005062,0.00018687,2]
[426733906,1782766241000,-3041.5169115,0.00018687,2]
[426733904,1782766241000,-204831.2089284,0.00018687,2]
[426734056,1782766242000,-289.661446,0.0002,2]
[426734054,1782766242000,-1451.5281,0.00019954,2]
[426734052,1782766242000,-1072.79955015,0.00019954,2]
[426734050,1782766242000,-164.0,0.00019944,2]
[426734048,1782766242000,-10419.22859912,0.000199,2]
[426734042,1782766242000,-500.0,0.00019899,2]
[426734044,1782766242000,-175.973955,0.000199,2]
[426734040,1782766242000,-500.0,0.00019899,2]
[426734037,1782766242000,-500.0,0.00019899,2]
[426734035,1782766242000,-500.0,0.00019899,2]
[426734058,1782766242000,-290.0,0.0002,2]
[426734046,1782766242000,-1171.96876367,0.000199,2]
[426734074,1782766242000,-197.19051785,0.0002,2]
[426734092,1782766242000,-190.91787017,0.0002,2]
[426734065,1782766242000,-154.0,0.0002,2]
[426734076,1782766242000,-780.0,0.0002,2]
[426734062,1782766242000,-408.0,0.0002,2]
[426734067,1782766242000,-241.0,0.0002,2]
[426734069,1782766242000,-531.0,0.0002,2]
[426734072,1782766242000,-184.0,0.0002,2]
[426734080,1782766242000,-309.0,0.0002,2]
[426734087,1782766242000,-190.91787017,0.0002,2]
[426734098,1782766242000,-157.0,0.0002,2]
[426734083,1782766242000,-190.91787017,0.0002,2]
[426734033,1782766242000,-765.25,0.00019794,2]
[426734090,1782766242000,-190.91787017,0.0002,2]
[426734078,1782766242000,-262.0,0.0002,2]
[426734030,1782766242000,-156.84109195,0.0001971,2]
[426734007,1782766242000,-795.91401045,0.000193,2]
[426734022,1782766242000,-10419.22859912,0.000195,2]
[426733975,1782766242000,-500.0,0.0001914,2]
[426733972,1782766242000,-500.0,0.0001914,2]
[426733968,1782766242000,-500.0,0.0001914,2]
[426733976,1782766242000,-500.0,0.0001914,2]
[426733970,1782766242000,-500.0,0.0001914,2]
[426733981,1782766242000,-500.0,0.0001914,2]
[426733988,1782766242000,-152.0,0.00019141,2]
[426733992,1782766242000,-3000.0,0.00019178,7]
[426733994,1782766242000,-221.36079593,0.00019178,10]
[426733996,1782766242000,-5963.2592398,0.00019198,2]
[426734000,1782766242000,-1171.96876367,0.000193,2]
[426733983,1782766242000,-500.0,0.0001914,2]
[426734028,1782766242000,-10419.22859912,0.000197,2]
[426733998,1782766242000,-169.26,0.00019241,2]
[426733985,1782766242000,-906.0,0.00019141,2]
[426734100,1782766242000,-1171.96876367,0.000201,2]
[426734002,1782766242000,-192.08612594,0.000193,2]
[426734005,1782766242000,-10419.22859912,0.000193,2]
[426734013,1782766242000,-166.66,0.00019401,2]
[426734011,1782766242000,-231.76031575,0.000194,2]
[426734015,1782766242000,-717.14066813,0.00019454,2]
[426734009,1782766242000,-9855.62939611,0.00019355,2]
[426734020,1782766242000,-1171.96876367,0.000195,2]
[426734026,1782766242000,-1171.96876367,0.000197,2]
[426734018,1782766242000,-1058.96,0.00019499,2]
[426734024,1782766242000,-795.91401045,0.000195,2]
[426733990,1782766242000,-3000.0,0.00019178,2]
[426734095,1782766242000,-190.91787018,0.0002,2]
[426733979,1782766242000,-500.0,0.0001914,2]
[426734105,1782766242000,-9855.62939611,0.00020148,2]
[426734179,1782766242000,-419.04784237,0.000216,2]
[426734181,1782766242000,-9855.62939611,0.00021734,2]
[426734183,1782766242000,-200.0,0.00021743,2]
[426734168,1782766242000,-35884.81,0.00021273,2]
[426734173,1782766242000,-5963.2592398,0.00021365,2]
[426734170,1782766242000,-1174.0,0.00021285,2]
[426734185,1782766242000,-765.25,0.00021773,2]
[426734171,1782766242000,-2040.0,0.00021305,2]
[426734188,1782766242000,-976.3982522,0.00021801,2]
[426734191,1782766242000,-159.96036438,0.000219,2]
[426734189,1782766242000,-5500.0,0.000219,7]
[426734196,1782766242000,-6681.91748201,0.000219,2]
[426734177,1782766242000,-164.0,0.00021588,2]
[426734194,1782766242000,-419.04784237,0.000219,2]
[426734198,1782766242000,-223.54524299,0.000219,4]
[426734210,1782766242000,-500.0,0.00021999,2]
[426734211,1782766242000,-500.0,0.00021999,2]
[426734200,1782766242000,-5000.0,0.00021918,2]
[426734202,1782766242000,-1174.0,0.0002197,2]
[426734207,1782766242000,-500.0,0.00021999,2]
[426734206,1782766242000,-500.0,0.00021999,2]
[426734204,1782766242000,-225.52881584,0.0002199,2]
[426734216,1782766242000,-296016.27126466,0.00022,4]
[426734214,1782766242000,-1058.96,0.00021999,2]
[426734220,1782766242000,-408.0,0.00022,2]
[426734102,1782766242000,-10419.22859912,0.000201,2]
[426734192,1782766242000,-2591.17503326,0.000219,2]
[426734166,1782766242000,-419.04784237,0.000212,2]
[426734218,1782766242000,-290.0,0.00022,2]
[426734164,1782766242000,-157.0,0.00021,2]
[426734175,1782766242000,-419.04784237,0.000214,2]
[426734108,1782766242000,-976.3982522,0.00020182,2]
[426734113,1782766242000,-5963.2592398,0.00020282,2]
[426734119,1782766242000,-905.0,0.000203,2]
[426734121,1782766242000,-906.0,0.000203,2]
[426734117,1782766242000,-401.0,0.000203,2]
[426734132,1782766242000,-10419.22859912,0.000205,2]
[426734135,1782766242000,-164.0,0.00020766,2]
[426734128,1782766242000,-21756.9006949,0.00020393,2]
[426734126,1782766242000,-10419.22859912,0.000203,2]
[426734137,1782766242000,-500.0,0.00020822,2]
[426734130,1782766242000,-1171.96876367,0.000205,2]
[426734133,1782766242000,-4080.0963206,0.00020578,2]
[426734115,1782766242000,-905.0,0.000203,2]
[426734134,1782766242000,-178.46,0.00020666,2]
[426734123,1782766242000,-1171.96876367,0.000203,2]
[426734154,1782766242000,-184.0,0.00021,2]
[426734162,1782766242000,-309.0,0.00021,2]
[426734158,1782766242000,-419.04784237,0.00021,2]
[426734156,1782766242000,-780.0,0.00021,2]
[426734152,1782766242000,-531.0,0.00021,2]
[426734160,1782766242000,-262.0,0.00021,2]
[426734142,1782766242000,-166.19,0.00020972,2]
[426734150,1782766242000,-241.0,0.00021,2]
[426734146,1782766242000,-408.0,0.00021,2]
[426734144,1782766242000,-290.0,0.00021,2]
[426734140,1782766242000,-9855.62939611,0.00020941,2]
[426734148,1782766242000,-154.0,0.00021,2]
[426734309,1782766243000,-193.3851046,0.00023651,2]
[426734302,1782766243000,-1058.96,0.0002365,2]
[426734307,1782766243000,-151.04074572,0.00023651,2]
[426734304,1782766243000,-156.94988402,0.00023651,2]
[426734290,1782766243000,-152.32049398,0.00023581,2]
[426734271,1782766243000,-780.0,0.00023,2]
[426734269,1782766243000,-184.0,0.00023,2]
[426734294,1782766243000,-189.14807963,0.00023581,2]
[426734265,1782766243000,-241.0,0.00023,2]
[426734300,1782766243000,-174.83705218,0.00023581,2]
[426734267,1782766243000,-531.0,0.00023,2]
[426734318,1782766243000,-156.39700776,0.00023651,2]
[426734292,1782766243000,-186.48394816,0.00023581,2]
[426734296,1782766243000,-219.3714729,0.00023581,2]
[426734298,1782766243000,-150.39787876,0.00023581,2]
[426734315,1782766243000,-164.01189625,0.00023651,2]
[426734313,1782766243000,-163.51523418,0.00023651,2]
[426734320,1782766243000,-176.5754635,0.00023651,2]
[426734324,1782766243000,-151.01788521,0.00023651,2]
[426734326,1782766243000,-183.71735229,0.00023653,2]
[426734328,1782766243000,-207.4297745,0.00023653,2]
[426734330,1782766243000,-163.44961863,0.00023653,2]
[426734286,1782766243000,-154.32095075,0.00023578,2]
[426734334,1782766243000,-157.69786669,0.00023653,2]
[426734311,1782766243000,-158.92563686,0.00023651,2]
[426734288,1782766243000,-199.94298461,0.00023581,2]
[426734247,1782766243000,-9855.62939611,0.00022528,2]
[426734279,1782766243000,-169.26,0.00023089,2]
[426734322,1782766243000,-188.06838553,0.00023651,2]
[426734224,1782766243000,-241.0,0.00022,2]
[426734226,1782766243000,-531.0,0.00022,2]
[426734229,1782766243000,-780.0,0.00022,2]
[426734222,1782766243000,-154.0,0.00022,2]
[426734231,1782766243000,-262.0,0.00022,2]
[426734227,1782766243000,-184.0,0.00022,2]
[426734234,1782766243000,-309.0,0.00022,2]
[426734236,1782766243000,-163.43,0.00022,7]
[426734257,1782766243000,-166.19,0.00022878,2]
[426734242,1782766243000,-714.08,0.00022466,2]
[426734238,1782766243000,-157.0,0.00022,2]
[426734261,1782766243000,-408.0,0.00023,2]
[426734259,1782766243000,-290.0,0.00023,2]
[426734240,1782766243000,-462.51,0.00022466,2]
[426734244,1782766243000,-667.69,0.00022466,2]
[426734249,1782766243000,-171.96849734,0.00022631,2]
[426734255,1782766243000,-196.65674306,0.00022861,2]
[426734253,1782766243000,-500.0,0.00022795,2]
[426734251,1782766243000,-587.0,0.00022654,2]
[426734273,1782766243000,-262.0,0.00023,2]
[426734263,1782766243000,-163.0,0.00023,2]
[426734275,1782766243000,-309.0,0.00023,2]
[426734277,1782766243000,-157.0,0.00023,2]
[426734281,1782766243000,-9855.62939611,0.00023321,2]
[426734283,1782766243000,-976.3982522,0.00023421,2]
[426734332,1782766243000,-191.44413587,0.00023653,2]
[426734345,1782766243000,-531.0,0.00024,2]
[426734340,1782766243000,-408.0,0.00024,2]
[426734405,1782766243000,-970.8948601,0.00024845,2]
[426734403,1782766243000,-1058.96,0.00024844,2]
[426734418,1782766243000,-9855.62939611,0.00024907,2]
[426734421,1782766243000,-213.75253608,0.00024909,2]
[426734424,1782766243000,-186.68336214,0.00024909,2]
[426734410,1782766243000,-20954.4005062,0.00024845,2]
[426734416,1782766243000,-186316.86291553,0.00024845,2]
[426734426,1782766243000,-313.89976805,0.00024909,2]
[426734412,1782766243000,-18514.34601287,0.00024845,2]
[426734407,1782766243000,-31306.4456069,0.00024845,2]
[426734428,1782766243000,-302.08149145,0.00024909,2]
[426734396,1782766243000,-184.29252328,0.00024836,2]
[426734433,1782766243000,-168.18124046,0.00024909,2]
[426734441,1782766243000,-167.54671676,0.00024909,2]
[426734430,1782766243000,-246.24831015,0.00024909,2]
[426734436,1782766243000,-151.84448786,0.00024909,2]
[426734442,1782766243000,-317.85127372,0.00024909,2]
[426734437,1782766243000,-228.68218607,0.00024909,2]
[426734448,1782766243000,-312.79401552,0.00024909,2]
[426734446,1782766243000,-206.24020719,0.00024909,2]
[426734450,1782766243000,-328.02379249,0.00024909,2]
[426734336,1782766243000,-765.25,0.00023753,2]
[426734444,1782766243000,-327.03046837,0.00024909,2]
[426734455,1782766243000,-376.13677106,0.00024909,2]
[426734439,1782766243000,-242.64580948,0.00024909,2]
[426734394,1782766243000,-300.79575752,0.00024836,2]
[426734452,1782766243000,-353.150927,0.00024909,2]
[426734401,1782766243000,-248.12910911,0.00024836,2]
[426734392,1782766243000,-438.74294581,0.00024836,2]
[426734338,1782766243000,-290.0,0.00024,2]
[426734343,1782766243000,-241.0,0.00024,2]
[426734349,1782766243000,-780.0,0.00024,2]
[426734347,1782766243000,-184.0,0.00024,2]
[426734351,1782766243000,-262.0,0.00024,2]
[426734357,1782766243000,-9855.62939611,0.00024114,2]
[426734355,1782766243000,-157.0,0.00024,2]
[426734353,1782766243000,-309.0,0.00024,2]
[426734359,1782766243000,-150.0,0.00024115,7]
[426734361,1782766243000,-150.0,0.00024115,7]
[426734373,1782766243000,-184.59,0.00024658,2]
[426734371,1782766243000,-1000.0,0.00024658,2]
[426734435,1782766243000,-386.77020919,0.00024909,2]
[426734377,1782766243000,-308.6419015,0.00024833,2]
[426734399,1782766243000,-349.67410435,0.00024836,2]
[426734389,1782766243000,-378.29615927,0.00024836,2]
[426734387,1782766243000,-372.96789632,0.00024836,2]
[426734385,1782766243000,-304.64098795,0.00024836,2]
[426734383,1782766243000,-399.88596923,0.00024836,2]
[426734367,1782766243000,-185.97,0.00024601,2]
[426734375,1782766243000,-242.49778802,0.00024833,2]
[426734365,1782766243000,-150.0,0.00024115,7]
[426734381,1782766243000,-248.19967397,0.00024833,2]
[426734364,1782766243000,-150.0,0.00024115,7]
[426734379,1782766243000,-155.55786174,0.00024833,2]
[426734369,1782766243000,-192.46,0.00024658,2]
[426734480,1782766244000,-215.44,0.00024999,2]
[426734493,1782766244000,-500.0,0.00024999,2]
[426734495,1782766244000,-539.66,0.00024999,2]
[426734489,1782766244000,-500.0,0.00024999,2]
[426734491,1782766244000,-500.0,0.00024999,2]
[426734478,1782766244000,-500.0,0.00024999,2]
[426734474,1782766244000,-184.59,0.00024946,7]
[426734470,1782766244000,-382.88827174,0.00024911,2]
[426734472,1782766244000,-315.39573337,0.00024911,2]
[426734464,1782766244000,-414.85954901,0.00024911,2]
[426734466,1782766244000,-326.89923725,0.00024911,2]
[426734485,1782766244000,-500.0,0.00024999,2]
[426734467,1782766244000,-167.24996159,0.00024911,2]
[426734459,1782766244000,-367.43470457,0.00024911,2]
[426734456,1782766244000,-302.03577041,0.00024909,2]
[426734476,1782766244000,-151.83365069,0.00024967,2]
[426734461,1782766244000,-215.73012263,0.00024911,2]
[426734487,1782766244000,-500.0,0.00024999,2]
[426734498,1782766244000,-1058.96,0.00024999,2]
[426734600,1782766244000,-151.0,0.00013696,2]
[426734482,1782766244000,-500.0,0.00024999,2]
[426734605,1782766244000,-3458.24727078,0.00025,2]
[426734530,1782766244000,-1161.23429922,0.00025,2]
[426734527,1782766244000,-33025.65263734,0.00025,2]
[426734525,1782766244000,-631.41741655,0.00025,5]
[426734512,1782766244000,-266.0269447,0.00025,60]
[426734509,1782766244000,-509.81678856,0.00025,60]
[426734602,1782766244000,-101963.53969937,0.00025,2]
[426734505,1782766244000,-331.64,0.00022,2]
[426734523,1782766244000,-4270.17385727,0.00025,60]
[426734500,1782766244000,-1058.96,0.00024999,2]
[426734516,1782766244000,-24552.11761026,0.00025,60]
[426734521,1782766244000,-3052.58,0.00025,60]
[426734519,1782766244000,-331.64,0.00024532,7]
[426734502,1782766244000,-44438.39359244,0.00025,60]
[426734514,1782766244000,-922.45630924,0.00025,60]
[426734507,1782766244000,-296.99515086,0.00025,60]
[426734828,1782766246000,-28962.06939509,0.00025,2]
[426734824,1782766246000,-204.0,0.0002,2]
[426734868,1782766255000,170.79578846,0.00025,120]
[426734900,1782766355000,-266.0269447,0.00012172,2]
[426734901,1782766368000,-233.9730553,0.00012172,2]
[426734902,1782766420000,-177.08377207,0.0001353,2]
[426734903,1782766473000,-509.81678856,0.00013326,2]
[426734904,1782766486000,-509.81678856,0.00013326,2]
[426734905,1782766499000,-500.0,0.00012072,2]
[426734908,1782766867000,-166.66,0.00012414,2]
[426734911,1782766981000,221.36,0.00011812,2]
[426734910,1782766981000,150.0,0.00011812,2]
[426734913,1782767153000,7386538.41445191,0.00030137,120]
[426734914,1782767219000,700.0,0.000138,5]
[426734915,1782767221000,1400.0,0.000139,5]
[426734916,1782767252000,-165.08,0.00012137,2]
[426734917,1782767306000,-371.36,0.00012227,2]
[426734918,1782767359000,-233.10994737,0.0001223,2]
[426734919,1782767412000,-200.0,0.00012233,2]
[426734923,1782767431000,-277.43,0.00012246,2]
[426734926,1782767431000,-208.56,0.00012329,2]
[426734925,1782767431000,-451.23501967,0.00012324,2]
[426734927,1782767431000,-419.75227074,0.00012373,2]
[426734928,1782767431000,-80.24772926,0.00012373,2]
[426734930,1782767431000,-500.0,0.00012373,2]
[426734924,1782767431000,-330.13498033,0.00012324,2]
[426734931,1782767431000,-591.9556606,0.00012373,2]
[426734932,1782767431000,-55.57594844,0.00012373,2]
[426734934,1782767431000,-1049.88324571,0.00012373,2]
[426734936,1782767431000,-1049.88324571,0.00012373,2]
[426734935,1782767431000,-1049.88324571,0.00012373,2]
[426734933,1782767431000,-994.30729727,0.00012373,2]
[426734937,1782767431000,-1049.88324571,0.00012373,2]
[426734929,1782767431000,-500.0,0.00012373,2]
[426734980,1782767432000,-1049.88324571,0.00012373,2]
[426734987,1782767432000,-1049.88324571,0.00012373,2]
[426734974,1782767432000,-1049.88324571,0.00012373,2]
[426734972,1782767432000,-1049.88324571,0.00012373,2]
[426734973,1782767432000,-1049.88324571,0.00012373,2]
[426734970,1782767432000,-1049.88324571,0.00012373,2]
[426734969,1782767432000,-1049.88324571,0.00012373,2]
[426734971,1782767432000,-1049.88324571,0.00012373,2]
[426734968,1782767432000,-1049.88324571,0.00012373,2]
[426734965,1782767432000,-1049.88324571,0.00012373,2]
[426734983,1782767432000,-1049.88324571,0.00012373,2]
[426734975,1782767432000,-1049.88324571,0.00012373,2]
[426734981,1782767432000,-1049.88324571,0.00012373,2]
[426734988,1782767432000,-1049.88324571,0.00012373,2]
[426734978,1782767432000,-1049.88324571,0.00012373,2]
[426734985,1782767432000,-1049.88324571,0.00012373,2]
[426734977,1782767432000,-1049.88324571,0.00012373,2]
[426734982,1782767432000,-1049.88324571,0.00012373,2]
[426734984,1782767432000,-1049.88324571,0.00012373,2]
[426734979,1782767432000,-1049.88324571,0.00012373,2]
[426734991,1782767432000,-1028.26800242,0.00012373,2]
[426734967,1782767432000,-1049.88324571,0.00012373,2]
[426734994,1782767432000,-1028.26800242,0.00012373,2]
[426734999,1782767432000,-1028.26800242,0.00012373,2]
[426734993,1782767432000,-1028.26800242,0.00012373,2]
[426734989,1782767432000,-1028.26800242,0.00012373,2]
[426734986,1782767432000,-1049.88324571,0.00012373,2]
[426734976,1782767432000,-1049.88324571,0.00012373,2]
[426734956,1782767432000,-1049.88324571,0.00012373,2]
[426734964,1782767432000,-1049.88324571,0.00012373,2]
[426734938,1782767432000,-1049.88324571,0.00012373,2]
[426734939,1782767432000,-1049.88324571,0.00012373,2]
[426734941,1782767432000,-1049.88324571,0.00012373,2]
[426734943,1782767432000,-1049.88324571,0.00012373,2]
[426734940,1782767432000,-1049.88324571,0.00012373,2]
[426734942,1782767432000,-1049.88324571,0.00012373,2]
[426734944,1782767432000,-1049.88324571,0.00012373,2]
[426734951,1782767432000,-1049.88324571,0.00012373,2]
[426734947,1782767432000,-1049.88324571,0.00012373,2]
[426734946,1782767432000,-1049.88324571,0.00012373,2]
[426734945,1782767432000,-1049.88324571,0.00012373,2]
[426734952,1782767432000,-1049.88324571,0.00012373,2]
[426734966,1782767432000,-1049.88324571,0.00012373,2]
[426734948,1782767432000,-1049.88324571,0.00012373,2]
[426734949,1782767432000,-1049.88324571,0.00012373,2]
[426734953,1782767432000,-1049.88324571,0.00012373,2]
[426734954,1782767432000,-1049.88324571,0.00012373,2]
[426734955,1782767432000,-1049.88324571,0.00012373,2]
[426734957,1782767432000,-1049.88324571,0.00012373,2]
[426734990,1782767432000,-1028.26800242,0.00012373,2]
[426734958,1782767432000,-1049.88324571,0.00012373,2]
[426734961,1782767432000,-1049.88324571,0.00012373,2]
[426734959,1782767432000,-1049.88324571,0.00012373,2]
[426734960,1782767432000,-1049.88324571,0.00012373,2]
[426734963,1782767432000,-1049.88324571,0.00012373,2]
[426734962,1782767432000,-1049.88324571,0.00012373,2]